Workbook

Sheet Balance Cuentas
A1: Capital | F1: =SUM(A4:C4) -> 41.66 | G1: =TODAY() -> 2025-04-09 | K1: =57000 -> 57000
A3: Efectivo | B3: BanCoppel | C3: BancoAzteca
A4: =SUMIF(Registros!$D$2:$D$9998, 'Balance Cuentas'!A3, Registros!$E$2:$E$9) -> 40 | B4: =SUMIF(Registros!$D$2:$D$9998, 'Balance Cuentas'!B3, Registros!$E$2:$E$9998) -> 1.66 | C4: =SUMIF(Registros!$D$2:$D$9998, 'Balance Cuentas'!C3, Registros!$E$2:$E$9998) -> 0
A7: Tarjeta de Credito | B7: Linea de credito | C7: Saldo Utilizado | D7: Linea de Credito Diponible | E7: Monto para liquidar | F7: Dia de pago del mes
A8: KlarkCard | B8: 2000 | C8: ='Tarjetas de Credito'!J2 -> -1998.88 | D8: =B8+C8 -> 1.12 | E8: =B8-D8 -> 1998.88 | F8: 4
A9: RappiCard | B9: 6000 | C9: ='Tarjetas de Credito'!B2 -> -6595.91 | D9: =B9+C9 -> -595.91 | E9: =B9-D9 -> 6595.91 | F9: 7
A10: Liverpool | B10: 6000 | C10: ='Tarjetas de Credito'!R2 -> -5926.71 | D10: =B10+C10 -> 73.29 | E10: =B10-D10 -> 5926.71 | F10: 15
A11: StoriCard | B11: 3300 | C11: ='Tarjetas de Credito'!F2 -> -3299.75 | D11: =B11+C11 -> 0.25 | E11: =B11-D11 -> 3299.75 | F11: 19 | G11: Monto para liquidar Tarjetas de Credito
A12: DidiCard | B12: 1500 | C12: ='Tarjetas de Credito'!N2 -> -1491.88 | D12: =B12+C12 -> 8.12 | E12: =B12-D12 -> 1491.88 | F12: 24 | G12: =SUM(Tabla3[[Monto para liquidar ]]) -> 19313.13
K13: =K1-G12-D16-D17-D20-D21-D22-(B29*2)-(B26*2)-B27 -> 7938.29
A15: Prestamo | B15: Monto de Prestamo | C15: Abonos | D15: Monto para liquidar | E15: Pago Correspondiente | F15: Dia de pago del mes
A16: Prestamo Klark | B16: 3635.22 | C16: =Prestamos!U2 -> 0 | D16: =B16-C16 -> 3635.22 | E16: 1800 | F16: 7
A17: Mercado Pago | B17: 4190 | C17: =Prestamos!C2 -> 0 | D17: 4190 | E17: 1800 | F17: 16
A18: Coppel | B18: 32474 | C18: =Prestamos!L2 -> 0 | D18: 32474 | E18: 3400 | F18: 30
A19: ITESO | B19: 280000 | C19: =Prestamos!O2 -> 0 | D19: 280000 | E19: 4000 | F19: 30
A20: PrestaMaz | B20: 8550 | C20: =Prestamos!F2 -> 2860 | D20: 5690 | E20: 1430 | F20: 4 veces al mes
A21: PrestaMaz Mama | B21: 4140 | C21: =Prestamos!I2 -> 2160 | D21: 1980 | E21: 1080 | F21: 4 veces al mes | G21: Monto para liquidar Prestamos
A22: BancoAzteca | B22: 9225 | C22: =Prestamos!R2 -> 0 | D22: 9225 | E22: 225 | F22: 4 veces al mes | G22: =SUM(Tabla4[Monto para liquidar]) -> 337194.22
A25: Suscripciones | B25: Monto | C25: Dia de pago del mes
A26: Telmex | B26: 630 | C26: 7
A27: Gym | B27: 546 | C27: 10
A28: Spotify | B28: 169 | C28: 15 | D28: Gasto total en suscripciones
A29: Telcel P | B29: 1611.18 | C29: 19 | D29: =SUM(Tabla5[[Monto ]]) -> 2956.18
A32: Yeny | B32: 1200
A33: Suegra | B33: 9000
A34: Chano | B34: 650

Sheet Registros
A1: Fecha | B1: Tipo (Ingreso/Gasto) | C1: Concepto | D1: Cuenta (Efectivo/Cuenta Bancaria) | E1: Monto
A2: 2025-03-24 | B2: Ingreso | C2: DIDI Driver | D2: BancoAzteca | E2: 239
A3: 2025-03-24 | B3: Ingreso | C3: DIDI Driver | D3: Efectivo | E3: 190
A4: 2025-03-24 | B4: Egreso | C4: Compras | D4: RappiCard | E4: -6595.91
A5: 2025-03-24 | B5: Egreso | C5: Compras | D5: StoriCard | E5: -3299.75
A6: 2025-03-24 | B6: Egreso | C6: Compras | D6: KlarkCard | E6: -1998.88
A7: 2025-03-24 | B7: Egreso | C7: DIDICard | D7: DidiCard | E7: -1499
A8: 2025-03-24 | B8: Egreso | C8: Compras | D8: Liverpool | E8: -4350.71
A9: 2025-03-24 | B9: Egreso | C9: Comida | D9: Efectivo | E9: -10
A10: 2025-03-25 | B10: Ingreso | C10: DIDI Driver | D10: Efectivo | E10: 55
A11: 2025-03-25 | B11: Egreso | C11: Estacionamiento | D11: Efectivo | E11: -14
A12: 2025-03-25 | B12: Egreso | C12: Corte de Cabello | D12: Efectivo | E12: -170
A13: 2025-03-25 | B13: Egreso | C13: DIDICard | D13: BancoAzteca | E13: -239
A14: 2025-03-25 | B14: Egreso | C14: Gasolina | D14: DidiCard | E14: -200
A15: 2025-03-26 | B15: Ingreso | C15: Mamá Deposito | D15: DidiCard | E15: 100
A16: 2025-03-26 | B16: Egreso | C16: Didi viaje | D16: DidiCard | E16: -42
A17: 2025-03-26 | B17: Egreso | C17: Didi viaje | D17: DidiCard | E17: -57
A18: 2025-03-26 | B18: Egreso | C18: Camion | D18: Efectivo | E18: -14
A19: 2025-03-26 | B19: Ingreso | C19: DIDI Driver | D19: Efectivo | E19: 440
A20: 2025-03-27 | B20: Egreso | C20: Estacionamiento | D20: Efectivo | E20: -14
A21: 2025-03-27 | B21: Egreso | C21: Comida | D21: Efectivo | E21: -20
A22: 2025-03-27 | B22: Ingreso | C22: DIDI Driver | D22: Efectivo | E22: 188
A23: 2025-03-27 | B23: Egreso | C23: Telcel S | D23: DidiCard | E23: -25
A24: 2025-03-28 | B24: Egreso | C24: Estacionamiento | D24: Efectivo | E24: -14
A25: 2025-03-28 | B25: Egreso | C25: Valeria | D25: Efectivo | E25: -125
A26: 2025-03-28 | B26: Ingreso | C26: CasBack | D26: DidiCard | E26: 52.12
A27: 2025-03-28 | B27: Egreso | C27: Telcel S | D27: DidiCard | E27: -20
A28: 2025-03-28 | B28: Egreso | C28: Gasolina | D28: Efectivo | E28: -250
A29: 2025-03-28 | B29: Ingreso | C29: DIDI Driver | D29: BanCoppel | E29: 300
A30: 2025-03-28 | B30: Ingreso | C30: DIDI Driver | D30: Efectivo | E30: 55
A31: 2025-03-30 | B31: Egreso | C31: Kiosko | D31: Efectivo | E31: -66
A32: 2025-03-30 | B32: Egreso | C32: Mamá | D32: Efectivo | E32: -65
A33: 2025-03-30 | B33: Egreso | C33: Valeria | D33: BanCoppel | E33: -300
A34: 2025-03-30 | B34: Egreso | C34: Valeria | D34: Efectivo | E34: -20
A35: 2025-03-30 | B35: Egreso | C35: Telcel S | D35: Efectivo | E35: -50
A36: 2025-03-30 | B36: Ingreso | C36: Prestamo Hugo | D36: BanCoppel | E36: 500
A37: 2025-03-30 | B37: Egreso | C37: Gasolina | D37: BanCoppel | E37: -100
A38: 2025-03-30 | B38: Egreso | C38: Valeria | D38: BanCoppel | E38: -159
A39: 2025-03-30 | B39: Egreso | C39: Valeria | D39: BanCoppel | E39: -131
A40: 2025-03-30 | B40: Egreso | C40: Valeria | D40: BanCoppel | E40: -109
A41: 2025-03-30 | B41: Egreso | C41: Gasolina | D41: DidiCard | E41: -40
A42: 2025-03-30 | B42: Egreso | C42: Gasolina | D42: Efectivo | E42: -60
A43: 2025-03-30 | B43: Egreso | C43: Tienda | D43: Efectivo | E43: -29
A44: 2025-03-30 | B44: Egreso | C44: Gasolina | D44: Efectivo | E44: -200
A45: 2025-03-30 | B45: Ingreso | C45: DIDI Driver | D45: Efectivo | E45: 328
A46: 2025-03-30 | B46: Egreso | C46: Baño | D46: Efectivo | E46: -30
A47: 2025-03-30 | B47: Ingreso | C47: DIDI Driver | D47: Efectivo | E47: 846
A48: 2025-03-30 | B48: Egreso | C48: Gasolina | D48: Efectivo | E48: -200
A49: 2025-03-30 | B49: Ingreso | C49: DIDI Driver | D49: Efectivo | E49: 51.5
A50: 2025-03-31 | B50: Egreso | C50: C | D50: Efectivo | E50: -14
A51: 2025-03-31 | B51: Egreso | C51: Cargador | D51: Efectivo | E51: -115
A52: 2025-03-31 | B52: Ingreso | C52: DIDI Driver | D52: BanCoppel | E52: 170
A53: 2025-03-31 | B53: Egreso | C53: Gasolina | D53: Efectivo | E53: -100
A54: 2025-03-31 | B54: Ingreso | C54: DIDI Driver | D54: Efectivo | E54: 1024
A55: 2025-03-31 | B55: Egreso | C55: Mamá | D55: Efectivo | E55: -900
A56: 2025-03-31 | B56: Ingreso | C56: Mamá Deposito | D56: BanCoppel | E56: 2520
A57: 2025-03-31 | B57: Egreso | C57: PrestaMaz | D57: BanCoppel | E57: -1430
A58: 2025-03-31 | B58: Egreso | C58: PrestaMaz Mama | D58: BanCoppel | E58: -1080
A59: 2025-03-31 | B59: Ingreso | C59: IdeasFrescas | D59: BanCoppel | E59: 7285.53
A60: 2025-03-31 | B60: Ingreso | C60: Mamá Deposito | D60: BanCoppel | E60: 1000
A61: 2025-03-31 | B61: Egreso | C61: Mensualidad Carro | D61: BanCoppel | E61: -8440.67
A62: 2025-03-31 | B62: Egreso | C62: Tienda | D62: Efectivo | E62: -10
A63: 2025-04-01 | B63: Egreso | C63: Estacionamiento | D63: Efectivo | E63: -14
A64: 2025-04-01 | B64: Egreso | C64: Valeria | D64: Efectivo | E64: -220
A65: 2025-04-01 | B65: Egreso | C65: Gasolina | D65: Efectivo | E65: -200
A66: 2025-04-01 | B66: Ingreso | C66: DIDI Driver | D66: Efectivo | E66: 603
A67: 2025-04-01 | B67: Ingreso | C67: DIDI Driver | D67: BanCoppel | E67: 400
A68: 2025-04-01 | B68: Egreso | C68: Mamá | D68: Efectivo | E68: -400
A69: 2025-04-01 | B69: Egreso | C69: Mamá | D69: BanCoppel | E69: -340
A70: 2025-04-01 | B70: Egreso | C70: C | D70: BanCoppel | E70: -78
A71: 2025-04-01 | B71: Egreso | C71: Pips Plus | D71: Liverpool | E71: -177
A72: 2025-04-01 | B72: Egreso | C72: Valeria | D72: Liverpool | E72: -1399
A73: 2025-04-02 | B73: Egreso | C73: Estacionamiento | D73: Efectivo | E73: -14
A74: 2025-04-02 | B74: Egreso | C74: Gasolina | D74: Efectivo | E74: -250
A75: 2025-04-02 | B75: Ingreso | C75: DIDI Driver | D75: Efectivo | E75: 433
A76: 2025-04-02 | B76: Egreso | C76: Kiosko | D76: Efectivo | E76: -66
A77: 2025-04-02 | B77: Ingreso | C77: DIDI Driver | D77: Efectivo | E77: =58+34 -> 92
A78: 2025-04-02 | B78: Egreso | C78: Tienda | D78: Efectivo | E78: -20
A79: 2025-04-03 | B79: Egreso | C79: Estacionamiento | D79: Efectivo | E79: -14
A80: 2025-04-03 | B80: Ingreso | C80: DIDI Driver | D80: BanCoppel | E80: 190
A81: 2025-04-03 | B81: Egreso | C81: Gasolina | D81: Efectivo | E81: -255.5
A82: 2025-04-03 | B82: Ingreso | C82: DIDI Driver | D82: Efectivo | E82: 40
A83: 2025-04-03 | B83: Egreso | C83: Valeria | D83: Efectivo | E83: -180
A84: 2025-04-03 | B84: Ingreso | C84: DIDI Driver | D84: Efectivo | E84: 50
A85: 2025-04-03 | B85: Egreso | C85: Telcel S | D85: Efectivo | E85: -50
A86: 2025-04-04 | B86: Egreso | C86: Tienda | D86: Efectivo | E86: -37
A87: 2025-04-04 | B87: Egreso | C87: Camion | D87: Efectivo | E87: -14
A88: 2025-04-04 | B88: Ingreso | C88: DIDI Driver | D88: BanCoppel | E88: 180
A89: 2025-04-04 | B89: Ingreso | C89: DIDI Driver | D89: Efectivo | E89: 128
A90: 2025-04-04 | B90: Egreso | C90: Bancoppel | D90: BanCoppel | E90: -23.2
A91: 2025-04-04 | B91: Egreso | C91: Gasolina | D91: BanCoppel | E91: -300
A92: 2025-04-04 | B92: Egreso | C92: Didi viaje | D92: Efectivo | E92: -30
A93: 2025-04-04 | B93: Ingreso | C93: DIDI Driver | D93: Efectivo | E93: 52
A94: 2025-04-07 | B94: Ingreso | C94: DIDI Driver | D94: Efectivo | E94: 364
A95: 2025-04-07 | B95: Egreso | C95: Valeria | D95: Efectivo | E95: -175
A96: 2025-04-07 | B96: Egreso | C96: Autolavado | D96: Efectivo | E96: -180
A97: 2025-04-07 | B97: Egreso | C97: Gasolina | D97: Efectivo | E97: -555
A98: 2025-04-07 | B98: Ingreso | C98: DIDI Driver | D98: Efectivo | E98: 1000
A99: 2025-04-07 | B99: Egreso | C99: Valeria | D99: Efectivo | E99: -780
A100: 2025-04-07 | B100: Egreso | C100: Telcel S | D100: Efectivo | E100: -50
A101: 2025-04-07 | B101: Ingreso | C101: DIDI Driver | D101: Efectivo | E101: 785
A102: 2025-04-07 | B102: Ingreso | C102: DIDI Driver | D102: Efectivo | E102: 439
A103: 2025-04-07 | B103: Egreso | C103: Gasolina | D103: Efectivo | E103: -205
A104: 2025-04-07 | B104: Egreso | C104: Kiosko | D104: Efectivo | E104: -47
A105: 2025-04-07 | B105: Ingreso | C105: DIDI Driver | D105: Efectivo | E105: 627
A106: 2025-04-07 | B106: Ingreso | C106: DIDI Driver | D106: BanCoppel | E106: 990
A107: 2025-04-07 | B107: Egreso | C107: Comision | D107: Efectivo | E107: -15
A108: 2025-04-07 | B108: Egreso | C108: PrestaMaz | D108: Efectivo | E108: -1430
A109: 2025-04-07 | B109: Egreso | C109: PrestaMaz Mama | D109: BanCoppel | E109: -1080
A110: 2025-04-07 | B110: Ingreso | C110: DIDI Driver | D110: Efectivo | E110: 60
A111: 2025-04-07 | B111: Ingreso | C111: DIDI Driver | D111: BanCoppel | E111: 80
A112: 2025-04-07 | B112: Egreso | C112: Didi viaje | D112: BanCoppel | E112: -43
A113: 2025-04-07 | B113: Egreso | C113: Gasolina | D113: Efectivo | E113: -150
A114: 2025-04-09 | B114: Ingreso | C114: DIDI Driver | D114: Efectivo | E114: 238
A115: 2025-04-09 | B115: Egreso | C115: Didi viaje | D115: Efectivo | E115: -40
A116: 2025-04-09 | B116: Egreso | C116: Gasolina | D116: Efectivo | E116: -167

Sheet Tarjetas de Credito
A1: Tarjetas De credito
A2: RappiCard | B2: =0+SUM(C4:C282) -> -6595.91 | E2: StoriCard | F2: =0+SUM(G4:G282) -> -3299.75 | I2: KlarkCard | J2: =0+SUM(K4:K282) -> -1998.88 | M2: DidiCard | N2: =0+SUM(O4:O282) -> -1491.88 | Q2: Liverpool | R2: =0+SUM(S4:S282) -> -5926.71
A3: Tipo (Ingreso/Gasto) | B3: Concepto | C3: Monto | E3: Tipo (Ingreso/Gasto) | F3: Concepto | G3: Monto | I3: Tipo (Ingreso/Gasto) | J3: Concepto | K3: Monto | M3: Tipo (Ingreso/Gasto) | N3: Concepto | O3: Monto | Q3: Tipo (Ingreso/Gasto) | R3: Concepto | S3: Monto
A4: Egreso | B4: 100 | C4: -6595.91 | E4: Egreso | F4: Compras | G4: -3299.75 | I4: Egreso | J4: Compras | K4: -1998.88 | M4: Egreso | N4: DIDICard | O4: -1499 | Q4: Egreso | R4: Compras | S4: -4350.71
M5: Egreso | N5: Gasolina | O5: -200 | Q5: Egreso | R5: Pips Plus | S5: -177
M6: Ingreso | N6: DIDICard | O6: 239 | Q6: Egreso | R6: Valeria | S6: -1399
M7: Ingreso | N7: Mamá Deposito | O7: 100
M8: Egreso | N8: Didi viaje | O8: -42
M9: Egreso | N9: Didi viaje | O9: -57
M10: Egreso | N10: Telcel S | O10: -25
M11: Ingreso | N11: CasBack | O11: 52.12
M12: Egreso | N12: Telcel S | O12: -20
M13: Egreso | N13: Gasolina | O13: -40

Sheet Prestamos
A1: Prestamos
A2: Mercado Pago | C2: =SUM(B4:B1048576) -> 0 | D2: PrestaMaz | F2: =SUM(E4:E1048576) -> 2860 | G2: PrestaMaz Mama | I2: =SUM(H4:H1048576) -> 2160 | J2: Coppel | L2: =SUM(K4:K1048576) -> 0 | M2: ITESO | O2: =SUM(N4:N1048576) -> 0 | P2: BancoAzteca | R2: =SUM(Q4:Q1048576) -> 0 | S2: Prestamo Klark | U2: =SUM(T4:T1048576) -> 0
A3: Fecha | B3: Abono | D3: Fecha | E3: Abono | G3: Fecha | H3: Abono | J3: Fecha | K3: Abono | M3: Fecha | N3: Abono | P3: Fecha | Q3: Abono | S3: Fecha | T3: Abono
D4: 2025-03-31 | E4: 1430 | G4: 2025-03-31 | H4: 1080
D5: 2025-04-07 | E5: 1430 | G5: 2025-04-07 | H5: 1080

Sheet Hoja1
A1: Tipo (Ingreso/Gasto) | B1: Ingreso | M1: Tipo (Ingreso/Gasto) | N1: Egreso
A2: Cuenta (Efectivo/Cuenta Bancaria) | B2: (Todas) | M2: Fecha | N2: (Varios elementos)
A4: Suma de Monto | B4: Etiquetas de columna | M4: Suma de Monto | N4: Etiquetas de columna
B5: mar | C5: abr | D5: Total general | N5: abr | O5: Total general
M6: Etiquetas de fila
A7: Etiquetas de fila | M7: C | N7: -78 | O7: -78 | P7: =GETPIVOTDATA("Monto",$M$4,"Concepto",M7)/GETPIVOTDATA("Monto",$M$4) -> 0.01910968469
A8: CasBack | B8: 52.12 | D8: 52.12 | M8: Camion | N8: -14 | O8: -14 | P8: =GETPIVOTDATA("Monto",$M$4,"Concepto",M8)/GETPIVOTDATA("Monto",$M$4) -> 0.003429943406
A9: DIDI Driver | B9: 3886.5 | C9: 2168 | D9: 6054.5 | M9: Didi viaje | N9: -30 | O9: -30 | P9: 0.007349878727
A10: IdeasFrescas | B10: 7285.53 | D10: 7285.53 | M10: Estacionamiento | N10: -42 | O10: -42 | P10: 0.01028983022
A11: Mamá Deposito | B11: 3620 | D11: 3620 | M11: Gasolina | N11: -1005.5 | O11: -1005.5 | P11: 0.2463434353
A12: Prestamo Hugo | B12: 500 | D12: 500 | M12: Kiosko | N12: -66 | O12: -66 | P12: 0.0161697332
A13: Total general | B13: 15344.15 | C13: 2168 | D13: 17512.15 | M13: Mamá | N13: -740 | O13: -740 | P13: 0.1812970086
M14: Pips Plus | N14: -177 | O14: -177 | P14: 0.04336428449
M15: Telcel S | N15: -50 | O15: -50 | P15: 0.01224979788
M16: Tienda | N16: -57 | O16: -57 | P16: 0.01396476958
M17: Valeria | N17: -1799 | O17: -1799 | P17: 0.4407477277
M18: Bancoppel | N18: -23.2 | O18: -23.2 | P18: 0.005683906216
M19: Total general | N19: -4081.7 | O19: -4081.7

Sheet Conceptos (hidden)
A1: Ingresos | C1: Egresos | E1: Cuentas
A2: DIDI Driver | C2: Mercado Pago | E2: Efectivo
A3: IdeasFrescas | C3: Telcel P | E3: BanCoppel
A4: Mamá Deposito | C4: StoriCard | E4: BancoAzteca
A5: CasBack | C5: DidiCard | E5: DidiCard
A6: Prestamo Hugo | C6: PrestaMaz | E6: StoriCard
C7: PrestaMaz Mama | E7: KlarkCard
C8: Coppel | E8: RappiCard
C9: ITESO | E9: Liverpool
C10: BancoAzteca | E10: 328
C11: KlarkCard
C12: RappiCard
C13: Telmex
C14: Gym
C15: Liverpool
C16: Spotify
C17: Prestamo Klark
C18: Compras
C19: Comida
C20: Estacionamiento
C21: Corte de Cabello
C22: Gasolina
C23: Liverpool
C24: Didi viaje
C25: Camion
C26: Telcel S
C27: Valeria
C28: Kiosko
C29: Mamá
C30: Tienda
C31: Baño
C32: C
C33: Cargador
C34: Mensualidad Carro
C35: Pips Plus
C36: Bancoppel
C37: Autolavado
C38: Comision
